Cogmind - Beta 9.1 @@@ ROGUE MODE // 2019.11.09 @ 16:48:06 Player: Rilt Result: Destroyed by S-10 Pest with Light Assault Rifle Performance ------------- Evolutions (0) 0 Regions Visited (2) 400 Robots Destroyed (17) 85 Value Destroyed (372) 372 Prototype IDs (0) 0 Alien Tech Used (0) 0 Bonus (0) 0 TOTAL SCORE: 857 Bonus ------- None Cogmind --------- Core Integrity 0/250 Matter 200/300 Energy 60/125 System Corruption 0% Temperature Cool (35) Location -10/Mines Parts ------- Power (1) Light Ion Engine Propulsion (2) Wheel Utility (2) High-capacity Storage Unit Weapon (2) Inventory (12) Small Storage Unit Assault Rifle Grenade Launcher Peak State ------------ Power Light Ion Engine Propulsion Wheel Compact Wheel Utility Small Storage Unit Weapon Medium Laser Medium Laser Inventory (Empty) [Rating: 6] Favorites ----------- Power Ion Engine Engine Ion Engine Propulsion Aluminum Leg Leg Aluminum Leg Wheel Wheel Utility High-capacity Storage Unit Storage High-capacity Storage Unit Weapon Medium Laser Energy Gun Medium Laser Launcher Grenade Launcher Special Weapon Mining Laser Build | -11 -10 -10 ------- Run | Scr Mat Min Slots Evolved . | . . . Power . | . . . Propulsion . | . . . Utility . | . . . Weapon . | . . . Parts Attached 16 | 6 9 1 Power 3 | 1 1 1 Engine 3 | 1 1 1 Core . | . . . Reactor . | . . . Propulsion 6 | 2 4 . Treads . | . . . Leg 2 | . 2 . Wheel 4 | 2 2 . Hover . | . . . Flight . | . . . Utility 2 | 1 1 . Device . | . . . Storage 2 | 1 1 . Processor . | . . . Hackware . | . . . Protection . | . . . Artifact . | . . . Weapon 5 | 2 3 . Energy Gun 3 | 2 1 . Energy Cannon . | . . . Ballistic Gun . | . . . Ballistic Cannon . | . . . Launcher 1 | . 1 . Special Weapon 1 | . 1 . Impact Weapon . | . . . Slashing Weapon . | . . . Piercing Weapon . | . . . Special Melee Weapon . | . . . Unidentified Prototypes . | . . . Parts Lost 8 | . 5 3 Power 2 | . 1 1 Propulsion 2 | . 1 1 Utility . | . . . Weapon 4 | . 3 1 Highest Loss Streak 3 | . 2 3 Average Slot Usage (%) 68 | . 68 67 Engine 12 | . 12 10 Leg 14 | . 15 . Wheel 8 | . 6 28 Storage 14 | . 14 14 Energy Gun 7 | . 8 . Launcher 7 | . 8 . Special Weapon 1 | . . 14 Naked Turns . | . . . Heaviest Build 41 | 11 41 38 Greatest Support 26 | 26 26 20 Greatest Overweight (x) 4 | 2 4 1 Average Overweight (x) 1 | . 1 1 Largest Inventory Capacity 12 | 6 12 12 Average Capacity 11 | 5 11 12 Most Carried 5 | 4 5 4 Average Carried 3 | 2 3 3 Final Capacity 12 | 6 12 12 Final Carried 4 | 4 4 3 Class Distribution -------------------- 100% | Mutant Dominant Class ---------------- Mutant | -10/Materials Mutant | -10/Mines Resources | -11 -10 -10 ----------- Run | Scr Mat Min Matter Collected 376 | 192 184 . Remotely . | . . . Salvage Created 361 | . 361 . Parts 28 | . 27 1 Haulers Intercepted . | . . . Recyclers Shooed . | . . . Parts Field Recycled . | . . . Retrieved Matter . | . . . Parts Self-Destructed . | . . . Prevented . | . . . Kills | -11 -10 -10 ------- Run | Scr Mat Min Combat Hostiles Destroyed 11 | . 10 1 Guns 3 | . 3 . Cannons 1 | . . 1 AOE 7 | . 7 . Classes Destroyed 4 | . 4 . Builder 5 | . 5 . Recycler 1 | . 1 . Swarmer 4 | . 3 1 Grunt 7 | . 7 . Best Kill Streak 5 | . 5 1 Combat Bots Only 3 | . 3 1 Max Kills in Single Turn 2 | . 2 1 Gunslinging . | . . . Exploded 1 | . 1 . Melee . | . . . Uniques/NPCs Destroyed . | . . . Combat | -11 -10 -10 -------- Run | Scr Mat Min Damage Taken 906 | . 700 206 Core 257 | . 171 86 Absorbed by Shields . | . . . Core Remaining (%) 100 | 100 . . Volleys Fired 45 | . 40 5 Largest 2 | . 2 1 Hottest 100 | . 100 100 Shots Fired 66 | . 61 5 Gun 44 | . 44 . Cannon . | . . . Launcher 16 | . 16 . Special 6 | . 1 5 Kinetic . | . . . Thermal 50 | . 45 5 Explosive 16 | . 16 . Electromagnetic . | . . . Robot Hit Streak 7 | . 7 1 Robot Miss Streak 4 | . 3 4 Penetration Max . | . . . Secondary Targets . | . . . Shots Hit Robots 42 | . 41 1 Core Hits 31 | . 30 1 Critical Hits . | . . . Critical Kills . | . . . Critical Parts Destroyed . | . . . Melee Attacks . | . . . Impact . | . . . Slashing . | . . . Piercing . | . . . Sneak Attacks . | . . . Combat Hostiles . | . . . Follow-up Attacks . | . . . Damage Inflicted 1156 | . 1132 24 Guns 189 | . 189 . Cannons . | . . . Explosions 922 | . 922 . Melee . | . . . Ramming 21 | . 21 . Kinetic . | . . . Thermal 213 | . 189 24 Explosive 922 | . 922 . Electromagnetic . | . . . Impact . | . . . Slashing . | . . . Piercing . | . . . Highest Corruption . | . . . Average Corruption . | . . . Corruption Purged . | . . . Overload Shots . | . . . Overflow Damage 21 | . 21 . Projectiles . | . . . Explosions 21 | . 21 . Melee . | . . . Knockbacks . | . . . Impact . | . . . Kinetic . | . . . Secondary . | . . . Self-Inflicted Damage 84 | . 84 . Shots 3 | . 3 . Rammed 1 | . 1 . Targets Rammed 1 | . 1 . Kicked . | . . . Crushed . | . . . Highest Temperature 407 | . 407 35 Average Temperature 155 | . 178 18 Received Heat Transfer 198 | . 198 . Effects 4 | . 4 . Interference 2 | . 2 . Matter Decay 1 | . 1 . Damage (minor) 1 | . 1 . Siege Activations . | . . . Robots Corrupted . | . . . Combat Hostiles . | . . . Parts Fried . | . . . Impact Corruptions . | . . . Robots Melted . | . . . Combat Hostiles . | . . . Parts Melted . | . . . Heat Transferred 605 | . 555 50 Parts Sabotaged . | . . . Parts Stolen . | . . . Parts Stripped . | . . . Power Chain Reactions . | . . . Missiles Intercepted . | . . . Alert | -11 -10 -10 ------- Run | Scr Mat Min Peak Influence 260 | . 260 72 Average Influence 85 | . 98 52 Maximum Alert Level 1 | . 1 . Low Security (%) 90 | . . . Level 1 9 | . . . Level 2 . | . . . Level 3 . | . . . Level 4 . | . . . Level 5 . | . . . High Security . | . . . Max Security . | . . . Squads Dispatched 3 | . 3 . Investigation . | . . . Extermination . | . . . Reinforcement 3 | . 3 . Assault . | . . . Garrison . | . . . Intercept . | . . . Construction Impeded . | . . . Haulers Reinforced . | . . . Stealth | -11 -10 -10 --------- Run | Scr Mat Min Distress Signals 1 | . 1 . Communications Jammed . | . . . Distress Signals . | . . . Times Spotted 18 | . 15 3 Peak Tracking Total 3 | . 3 3 Tactical Retreats . | . . . Traps | -11 -10 -10 ------- Run | Scr Mat Min Traps Triggered . | . . . Indirectly . | . . . Trap Hack Attempts . | . . . Triggered . | . . . Disarmed . | . . . Reprogrammed . | . . . Reused . | . . . Traps Extracted . | . . . Installed . | . . . Triggered . | . . . Machines | -11 -10 -10 ---------- Run | Scr Mat Min Machines Disabled 5 | . 5 . Max in Single Turn 2 | . 2 . Machines Sabotaged . | . . . Garrisons Compromised . | . . . Overloaded Fab Kills . | . . . Fab Network Shutdowns . | . . . Hacking | -11 -10 -10 --------- Run | Scr Mat Min Machines Accessed . | . . . Terminals . | . . . Fabricators . | . . . Repair Stations . | . . . Recycling Units . | . . . Scanalyzers . | . . . Garrison Access . | . . . Total Hacks . | . . . Successful . | . . . Failed . | . . . Catastrophic . | . . . Database Lockouts . | . . . Manual . | . . . Terminals . | . . . Fabricators . | . . . Repair Stations . | . . . Recycling Units . | . . . Scanalyzers . | . . . Garrison Access . | . . . Terminal Hacks . | . . . Fabricator Hacks . | . . . Repair Station Hacks . | . . . Recycling Unit Hacks . | . . . Scanalyzer . | . . . Garrison Access Hacks . | . . . Unauthorized Hacks . | . . . Terminals . | . . . Fabricators . | . . . Repair Stations . | . . . Recycling Units . | . . . Scanalyzers . | . . . Garrison Access . | . . . Data Cores Recovered . | . . . Used . | . . . Hacking Detections . | . . . Full Trace Events . | . . . Feedback Events . | . . . Feedback Blocked . | . . . Robot Schematics Acquired . | . . . Robots Built . | . . . Matter . | . . . Time . | . . . Total Robot Build Rating . | . . . Part Schematics Acquired . | . . . Parts Built . | . . . Matter . | . . . Time . | . . . Total Part Build Rating . | . . . Parts Repaired . | . . . Time . | . . . Parts Recycled . | . . . Recycled Matter . | . . . Retrieved Matter . | . . . Retrieved Components . | . . . Parts Scanalyzed . | . . . Part Schematics Acquired . | . . . Parts Damaged . | . . . Bothacking | -11 -10 -10 ------------ Run | Scr Mat Min Used RIF Installer . | . . . Robots Hacked . | . . . Non-combat . | . . . Combat . | . . . Robot Hacks Applied . | . . . Relay Couplers Released . | . . . Robots Rewired . | . . . Allies Hacked . | . . . Hacks Repelled . | . . . Allies | -11 -10 -10 -------- Run | Scr Mat Min Total Allies . | . . . Largest Group . | . . . Highest-Rated Group . | . . . Highest-Rated Ally . | . . . Total Orders . | . . . Ally Attacks . | . . . Total Damage . | . . . Kills . | . . . Allies Corrupted . | . . . Allies Melted . | . . . Intel | -11 -10 -10 ------- Run | Scr Mat Min Robot Analysis Total . | . . . Derelict Logs Recovered 1 | . . 1 Drone Launches . | . . . Drone Recoveries . | . . . Exploration | -11 -10 -10 ------------- Run | Scr Mat Min Turns Passed 648 | 66 540 42 Spaces Moved 310 | 58 228 24 Core 11 | 11 . . Treads . | . . . Legs 168 | . 168 . Wheels 131 | 47 60 24 Hover . | . . . Flight . | . . . Fastest Speed 50 | 50 90 90 Average Speed 137 | 87 154 90 Slowest Speed 240 | 150 240 90 Overloaded Moves . | . . . Propulsion Burnouts . | . . . Robots Hopped . | . . . Cave-ins Triggered . | . . . Exploration Rate (%) 14 | 4 32 8 Regions Visited 2 Branch Regions 1 Pre-discovered Areas 1 | . . 1 Known Exits Taken . | . . . Unknown Exits Taken 2 | 1 1 . Scrap Searched . | . . . Spaces Dug . | . . . Terrain Destroyed 78 | . 77 1 Melee . | . . . Projectile 1 | . . 1 AOE 77 | . 77 . Actions | -11 -10 -10 --------- Run | Scr Mat Min Total 455 | 73 352 30 Wait 64 | . 64 . Move 308 | 57 227 24 Hop . | . . . Pick Up 17 | 10 7 . Fast Attach . | . . . Attach 14 | 6 7 1 Detach 1 | . 1 . Swap 2 | . 2 . Drop 3 | . 3 . Fire 45 | . 40 5 Melee . | . . . Ram . | . . . Kick 1 | . 1 . Crush . | . . . Escape Stasis . | . . . Rewire . | . . . Trap . | . . . Miscellaneous . | . . . Route ------- -11/Scrapyard -10/Materials -10/Mines History --------- Turn | Location | Event 8 | -11/Scrapyard | Discovered new exit (range 16) 67 | -11/Scrapyard | Entered Materials 313 | -10/Materials | Build established: Mutant 355 | -10/Materials | Core integrity fell below 50% 443 | -10/Materials | Discovered new exit (range 12) 607 | -10/Materials | Entered Mines 638 | -10/Mines | Core integrity fell below 20% 643 | -10/Mines | Met a Derelict bent on vengeance 649 | -10/Mines | Destroyed by S-10 Pest with Light Assault Rifle Last Messages --------------- R-06 Scavenger collects Welding Torch. R-06 Scavenger collects Lgt. Ion Engine. Acquired Wheel. Dropped Aluminum Leg. The unstable cave ceiling collapses. U-05 Engineer lays Concrete. U-05 Engineer builds a Door. LOCATION=UNKNOWN GOAL=ESCAPE Something is scanning the area. K-01 Serf collects debris. Acquired derelict log, extracted data. World map updated: -10/Materials. Ion Engine destroyed. K-01 Serf collects debris. S-10 Pest destroyed. K-01 Serf collects debris. Wheel destroyed. K-01 Serf cleans the Plasma Injector. Mining Laser destroyed. Map ----- +----------------------------------------------------+ | ????????????????????????????????????????????????? | | ????????????????????????????????????????????????? | | ????????????????????????????????????????????????? | | ????????????????????????????????????????????????? | | ????????????????????????????????????????????????? | | ????????????????????????????????????????????????? | | ????????????????????????????????????????????????? | | ????????????????????????????????????????????????? | | ????????????????????????????????????????????????? | | ????????????????????????????????????????????????? | | ????????????????????????????????????????????????? | | ?????????????????????????????#########??????????? | | ?????????????????????????????# #??????????? | | ?????????????????????????????# """ #??????????? | | ????????????????????????#????# """ #??????????? | | ??????????????????????## ##??# """ #??????????? | | ??????????????????????# #??# #??????????? | | ??????????????????????# ??###### ##??????????? | | ??????????????????????# ???????# #???????????? | | ??????????????????????# ????????# #???????????? | | ??????????????????????# ????????# #???????????? | | ?????????????????????## ????????# #???????????? | | ?????????????????????? ????????# #???????????? | | ?????????????????????##s #????????# #???????????? | | ?????????????????????#;[ #????????# #???????????? | | ?????????????????????## @###??????# #???????????? | | ?????????????????????# s ##?????# #???????????? | | ?????????????????????# k ##????# #???????????? | | ?????????????????????# """ ###### #???????????? | | ?????????????????????# """ #???????????? | | ?????????????????????# t"""k #######???????????? | | ?????????????????????## ##?????????????????? | | ??????????????????????##u ##??????????????????? | | ???????????????????????## ###???????????????????? | | ????????????????????????# #?????????????????????? | | ????????????????????????# ??????????????????????? | | ????????????????????????##??????????????????????? | | ????????????????????????????????????????????????? | | ????????????????????????????????????????????????? | | ????????????????????????????????????????????????? | | ????????????????????????????????????????????????? | | ????????????????????????????????????????????????? | | ????????????????????????????????????????????????? | | ????????????????????????????????????????????????? | | ????????????????????????????????????????????????? | | ????????????????????????????????????????????????? | | ????????????????????????????????????????????????? | | ????????????????????????????????????????????????? | | ????????????????????????????????????????????????? | | ????????????????????????????????????????????????? | +----------------------------------------------------+ Best States ------------- Heat Dissipation 25 Energy Generation 10 Energy Capacity 250 Matter Stores 295 Matter Capacity 300 Sight Range 16 Terrain Scan Density 10 Evasion (%) 50 Item Schematics ----------------- None Robot Schematics ------------------ None Fabricated ------------ Nothing Alien Tech Used ----------------- None Achievements -------------- None Challenges ------------ None Game ------ Seed SwordFluxCanceller Manual? 0 Play Time 00:07:03 Cumulative 3.9 hours Start 2019.11.09 @ 16:41:38 End 2019.11.09 @ 16:48:06 Sessions 1 Manual Loads 0 Difficulty Rogue Special Mode None Game No. 5 Rogue 5 Adventurer 0 Explorer 0 Win Type - Total 0 Types 0/0/0/0/0/0/0 Lore% 12 Gallery% 10 Achievement% 10 Wizard Run 0 Options --------- ASCII 0 Keyboard 0 Movement Mouse Keybinds 0 Fullscreen 1 Font 20/SmallcapsGlow Map View 66x50 Tactical HUD 0 Map Filters NONE Filters NONE Steam 1 RUN: 8dae4e48-1a00-4875-9edc-add97261b0c5